Workbook

Sheet Сватбен бюджет
B2: ЛИНА + ДРАГАН ВЪРЖЕТЕ ВЪЗЕЛА
B5: КАТЕГОРИЯ | C5: ОЧАКВАНИ РАЗХОДИ | D5: ДЕЙСТВИТЕЛНИ РАЗХОДИ | E5: РАЗЛИКА | F5: БЮДЖЕТ % | J5: Несортирани | K5: Очаквани разходи | L5: Действителен разход | M5: Очаквани разходи - Класиране на стойността | N5: Класиране | O5: № | P5: Сортирани
B6: =P6 -> Тържество в ресторанта | C6: =VLOOKUP(TBL_Summary[[#This Row],[КАТЕГОРИЯ]],TBL_RankingData,2,FALSE) -> 14,500 лв. | D6: =IF(VLOOKUP(TBL_Summary[[#This Row],[КАТЕГОРИЯ]],TBL_RankingData,3,FALSE)=0,"",VLOOKUP(TBL_Summary[[#This Row],[КАТЕГОРИЯ]],TBL_RankingData,3,FALSE)) -> 12,800 лв. | E6: =IF(OR(TBL_Summary[[#This Row],[ОЧАКВАНИ РАЗХОДИ]]="",TBL_Summary[[#This Row],[ДЕЙСТВИТЕЛНИ РАЗХОДИ]]=""),"",TBL_Summary[[#This Row],[ОЧАКВАНИ РАЗХОДИ]]-TBL_Summary[[#This Row],[ДЕЙСТВИТЕЛНИ РАЗХОДИ]]) -> 1,700 лв. | F6: =TBL_Summary[[#This Row],[ОЧАКВАНИ РАЗХОДИ]]/SUM(TBL_Summary[ОЧАКВАНИ РАЗХОДИ]) -> 48.7% | J6: Тържество в ресторанта | K6: =TBL_Reception[[#Totals],[ОЧАКВАН]] -> 14500 | L6: =TBL_Reception[[#Totals],[ДЕЙСТВИТЕЛЕН]] -> 12800 | M6: =K6-O6/100 -> 14499.99 | N6: =_xlfn.RANK.AVG(M6,$M$6:$M$15) -> 1 | O6: 1 | P6: =INDEX(TBL_RankingData,MATCH(O6,$N$6:$N$15,0),1) -> Тържество в ресторанта
B7: =P7 -> Облекло | C7: =VLOOKUP(TBL_Summary[[#This Row],[КАТЕГОРИЯ]],TBL_RankingData,2,FALSE) -> 4,000 лв. | D7: =IF(VLOOKUP(TBL_Summary[[#This Row],[КАТЕГОРИЯ]],TBL_RankingData,3,FALSE)=0,"",VLOOKUP(TBL_Summary[[#This Row],[КАТЕГОРИЯ]],TBL_RankingData,3,FALSE)) -> 2,900 лв. | E7: =IF(OR(TBL_Summary[[#This Row],[ОЧАКВАНИ РАЗХОДИ]]="",TBL_Summary[[#This Row],[ДЕЙСТВИТЕЛНИ РАЗХОДИ]]=""),"",TBL_Summary[[#This Row],[ОЧАКВАНИ РАЗХОДИ]]-TBL_Summary[[#This Row],[ДЕЙСТВИТЕЛНИ РАЗХОДИ]]) -> 1,100 лв. | F7: =TBL_Summary[[#This Row],[ОЧАКВАНИ РАЗХОДИ]]/SUM(TBL_Summary[ОЧАКВАНИ РАЗХОДИ]) -> 13.4% | J7: Облекло | K7: =TBL_Attire[[#Totals],[ОЧАКВАН]] -> 4000 | L7: =TBL_Attire[[#Totals],[ДЕЙСТВИТЕЛЕН]] -> 2900 | M7: =K7-O7/100 -> 3999.98 | N7: 2 | O7: 2 | P7: Облекло
B8: Цветя и декорации | C8: =VLOOKUP(TBL_Summary[[#This Row],[КАТЕГОРИЯ]],TBL_RankingData,2,FALSE) -> 3,000 лв. | D8: =IF(VLOOKUP(TBL_Summary[[#This Row],[КАТЕГОРИЯ]],TBL_RankingData,3,FALSE)=0,"",VLOOKUP(TBL_Summary[[#This Row],[КАТЕГОРИЯ]],TBL_RankingData,3,FALSE)) ->  | E8: =IF(OR(TBL_Summary[[#This Row],[ОЧАКВАНИ РАЗХОДИ]]="",TBL_Summary[[#This Row],[ДЕЙСТВИТЕЛНИ РАЗХОДИ]]=""),"",TBL_Summary[[#This Row],[ОЧАКВАНИ РАЗХОДИ]]-TBL_Summary[[#This Row],[ДЕЙСТВИТЕЛНИ РАЗХОДИ]]) ->  | F8: =TBL_Summary[[#This Row],[ОЧАКВАНИ РАЗХОДИ]]/SUM(TBL_Summary[ОЧАКВАНИ РАЗХОДИ]) -> 10.1% | J8: Цветя и декорации | K8: =TBL_FlowersAndDecor[[#Totals],[ОЧАКВАН]] -> 3000 | L8: =TBL_FlowersAndDecor[[#Totals],[ДЕЙСТВИТЕЛЕН]] -> 0 | M8: 2999.97 | N8: 3 | O8: 3 | P8: Цветя и декорации
B9: Снимки и видео | C9: =VLOOKUP(TBL_Summary[[#This Row],[КАТЕГОРИЯ]],TBL_RankingData,2,FALSE) -> 2,500 лв. | D9: =IF(VLOOKUP(TBL_Summary[[#This Row],[КАТЕГОРИЯ]],TBL_RankingData,3,FALSE)=0,"",VLOOKUP(TBL_Summary[[#This Row],[КАТЕГОРИЯ]],TBL_RankingData,3,FALSE)) ->  | E9: =IF(OR(TBL_Summary[[#This Row],[ОЧАКВАНИ РАЗХОДИ]]="",TBL_Summary[[#This Row],[ДЕЙСТВИТЕЛНИ РАЗХОДИ]]=""),"",TBL_Summary[[#This Row],[ОЧАКВАНИ РАЗХОДИ]]-TBL_Summary[[#This Row],[ДЕЙСТВИТЕЛНИ РАЗХОДИ]]) ->  | F9: =TBL_Summary[[#This Row],[ОЧАКВАНИ РАЗХОДИ]]/SUM(TBL_Summary[ОЧАКВАНИ РАЗХОДИ]) -> 8.4% | J9: Музика | K9: =TBL_Music[[#Totals],[ОЧАКВАН]] -> 1800 | L9: =TBL_Music[[#Totals],[ДЕЙСТВИТЕЛЕН]] -> 0 | M9: 1799.96 | N9: 5 | O9: 4 | P9: Снимки и видео
B10: Музика | C10: =VLOOKUP(TBL_Summary[[#This Row],[КАТЕГОРИЯ]],TBL_RankingData,2,FALSE) -> 1,800 лв. | D10: =IF(VLOOKUP(TBL_Summary[[#This Row],[КАТЕГОРИЯ]],TBL_RankingData,3,FALSE)=0,"",VLOOKUP(TBL_Summary[[#This Row],[КАТЕГОРИЯ]],TBL_RankingData,3,FALSE)) ->  | E10: =IF(OR(TBL_Summary[[#This Row],[ОЧАКВАНИ РАЗХОДИ]]="",TBL_Summary[[#This Row],[ДЕЙСТВИТЕЛНИ РАЗХОДИ]]=""),"",TBL_Summary[[#This Row],[ОЧАКВАНИ РАЗХОДИ]]-TBL_Summary[[#This Row],[ДЕЙСТВИТЕЛНИ РАЗХОДИ]]) ->  | F10: =TBL_Summary[[#This Row],[ОЧАКВАНИ РАЗХОДИ]]/SUM(TBL_Summary[ОЧАКВАНИ РАЗХОДИ]) -> 6.1% | J10: Снимки и видео | K10: =TBL_PhotographsAndVideo[[#Totals],[ОЧАКВАН]] -> 2500 | L10: =TBL_PhotographsAndVideo[[#Totals],[ДЕЙСТВИТЕЛЕН]] -> 0 | M10: 2499.95 | N10: 4 | O10: 5 | P10: Музика
B11: =P11 -> Услуги и подаръци | C11: =VLOOKUP(TBL_Summary[[#This Row],[КАТЕГОРИЯ]],TBL_RankingData,2,FALSE) -> 1,100 лв. | D11: =IF(VLOOKUP(TBL_Summary[[#This Row],[КАТЕГОРИЯ]],TBL_RankingData,3,FALSE)=0,"",VLOOKUP(TBL_Summary[[#This Row],[КАТЕГОРИЯ]],TBL_RankingData,3,FALSE)) ->  | E11: =IF(OR(TBL_Summary[[#This Row],[ОЧАКВАНИ РАЗХОДИ]]="",TBL_Summary[[#This Row],[ДЕЙСТВИТЕЛНИ РАЗХОДИ]]=""),"",TBL_Summary[[#This Row],[ОЧАКВАНИ РАЗХОДИ]]-TBL_Summary[[#This Row],[ДЕЙСТВИТЕЛНИ РАЗХОДИ]]) ->  | F11: =TBL_Summary[[#This Row],[ОЧАКВАНИ РАЗХОДИ]]/SUM(TBL_Summary[ОЧАКВАНИ РАЗХОДИ]) -> 3.7% | J11: Услуги и подаръци | K11: =TBL_FavorsAndGifts[[#Totals],[ОЧАКВАН]] -> 1100 | L11: =TBL_FavorsAndGifts[[#Totals],[ДЕЙСТВИТЕЛЕН]] -> 0 | M11: 1099.94 | N11: 6 | O11: 6 | P11: Услуги и подаръци
B12: =P12 -> Венчални халки | C12: =VLOOKUP(TBL_Summary[[#This Row],[КАТЕГОРИЯ]],TBL_RankingData,2,FALSE) -> 1,100 лв. | D12: =IF(VLOOKUP(TBL_Summary[[#This Row],[КАТЕГОРИЯ]],TBL_RankingData,3,FALSE)=0,"",VLOOKUP(TBL_Summary[[#This Row],[КАТЕГОРИЯ]],TBL_RankingData,3,FALSE)) ->  | E12: =IF(OR(TBL_Summary[[#This Row],[ОЧАКВАНИ РАЗХОДИ]]="",TBL_Summary[[#This Row],[ДЕЙСТВИТЕЛНИ РАЗХОДИ]]=""),"",TBL_Summary[[#This Row],[ОЧАКВАНИ РАЗХОДИ]]-TBL_Summary[[#This Row],[ДЕЙСТВИТЕЛНИ РАЗХОДИ]]) ->  | F12: =TBL_Summary[[#This Row],[ОЧАКВАНИ РАЗХОДИ]]/SUM(TBL_Summary[ОЧАКВАНИ РАЗХОДИ]) -> 3.7% | J12: Церемония | K12: =TBL_Ceremony[[#Totals],[ОЧАКВАН]] -> 800 | L12: =TBL_Ceremony[[#Totals],[ДЕЙСТВИТЕЛЕН]] -> 0 | M12: 799.93 | N12: 8 | O12: 7 | P12: Венчални халки
B13: =P13 -> Церемония | C13: =VLOOKUP(TBL_Summary[[#This Row],[КАТЕГОРИЯ]],TBL_RankingData,2,FALSE) -> 800 лв. | D13: =IF(VLOOKUP(TBL_Summary[[#This Row],[КАТЕГОРИЯ]],TBL_RankingData,3,FALSE)=0,"",VLOOKUP(TBL_Summary[[#This Row],[КАТЕГОРИЯ]],TBL_RankingData,3,FALSE)) ->  | E13: =IF(OR(TBL_Summary[[#This Row],[ОЧАКВАНИ РАЗХОДИ]]="",TBL_Summary[[#This Row],[ДЕЙСТВИТЕЛНИ РАЗХОДИ]]=""),"",TBL_Summary[[#This Row],[ОЧАКВАНИ РАЗХОДИ]]-TBL_Summary[[#This Row],[ДЕЙСТВИТЕЛНИ РАЗХОДИ]]) ->  | F13: =TBL_Summary[[#This Row],[ОЧАКВАНИ РАЗХОДИ]]/SUM(TBL_Summary[ОЧАКВАНИ РАЗХОДИ]) -> 2.7% | J13: Канцеларски материали | K13: =TBL_Stationery[[#Totals],[ОЧАКВАН]] -> 500 | L13: =TBL_Stationery[[#Totals],[ДЕЙСТВИТЕЛЕН]] -> 0 | M13: 499.92 | N13: 9 | O13: 8 | P13: Церемония
B14: =P14 -> Канцеларски материали | C14: =VLOOKUP(TBL_Summary[[#This Row],[КАТЕГОРИЯ]],TBL_RankingData,2,FALSE) -> 500 лв. | D14: =IF(VLOOKUP(TBL_Summary[[#This Row],[КАТЕГОРИЯ]],TBL_RankingData,3,FALSE)=0,"",VLOOKUP(TBL_Summary[[#This Row],[КАТЕГОРИЯ]],TBL_RankingData,3,FALSE)) ->  | E14: =IF(OR(TBL_Summary[[#This Row],[ОЧАКВАНИ РАЗХОДИ]]="",TBL_Summary[[#This Row],[ДЕЙСТВИТЕЛНИ РАЗХОДИ]]=""),"",TBL_Summary[[#This Row],[ОЧАКВАНИ РАЗХОДИ]]-TBL_Summary[[#This Row],[ДЕЙСТВИТЕЛНИ РАЗХОДИ]]) ->  | F14: =TBL_Summary[[#This Row],[ОЧАКВАНИ РАЗХОДИ]]/SUM(TBL_Summary[ОЧАКВАНИ РАЗХОДИ]) -> 1.7% | J14: Венчални халки | K14: =TBL_WeddingRings[[#Totals],[ОЧАКВАН]] -> 1100 | L14: =TBL_WeddingRings[[#Totals],[ДЕЙСТВИТЕЛЕН]] -> 0 | M14: 1099.91 | N14: 7 | O14: 9 | P14: Канцеларски материали
B15: =P15 -> Транспорт | C15: =VLOOKUP(TBL_Summary[[#This Row],[КАТЕГОРИЯ]],TBL_RankingData,2,FALSE) -> 450 лв. | D15: =IF(VLOOKUP(TBL_Summary[[#This Row],[КАТЕГОРИЯ]],TBL_RankingData,3,FALSE)=0,"",VLOOKUP(TBL_Summary[[#This Row],[КАТЕГОРИЯ]],TBL_RankingData,3,FALSE)) ->  | E15: =IF(OR(TBL_Summary[[#This Row],[ОЧАКВАНИ РАЗХОДИ]]="",TBL_Summary[[#This Row],[ДЕЙСТВИТЕЛНИ РАЗХОДИ]]=""),"",TBL_Summary[[#This Row],[ОЧАКВАНИ РАЗХОДИ]]-TBL_Summary[[#This Row],[ДЕЙСТВИТЕЛНИ РАЗХОДИ]]) ->  | F15: =TBL_Summary[[#This Row],[ОЧАКВАНИ РАЗХОДИ]]/SUM(TBL_Summary[ОЧАКВАНИ РАЗХОДИ]) -> 1.5% | J15: Транспорт | K15: =TBL_Transportation[[#Totals],[ОЧАКВАН]] -> 450 | L15: =TBL_Transportation[[#Totals],[ДЕЙСТВИТЕЛЕН]] -> 0 | M15: 449.9 | N15: 10 | O15: 10 | P15: Транспорт
B16: Общо | C16: =SUBTOTAL(109,TBL_Summary[ОЧАКВАНИ РАЗХОДИ]) -> 29,750 лв. | D16: =SUBTOTAL(109,TBL_Summary[ДЕЙСТВИТЕЛНИ РАЗХОДИ]) -> 15,700 лв. | E16: =TBL_Summary[[#Totals],[ОЧАКВАНИ РАЗХОДИ]]-TBL_Summary[[#Totals],[ДЕЙСТВИТЕЛНИ РАЗХОДИ]] -> 14,050 лв. | F16: =SUBTOTAL(109,TBL_Summary[БЮДЖЕТ %]) -> 100%

Sheet Подробни данни за бюджета
B2: ПОДРОБНИ ДАННИ ЗА БЮДЖЕТА
B4: ТЪРЖЕСТВО В РЕСТОРАНТА | C4: ОЧАКВАН | D4: ДЕЙСТВИТЕЛЕН | E4: РАЗЛИКА
B5: Място и наемане | C5: 8,000.00 лв. | D5: 7,800.00 лв. | E5: =IF(OR(TBL_Reception[[#This Row],[ОЧАКВАН]]="",TBL_Reception[[#This Row],[ДЕЙСТВИТЕЛЕН]]=""),"",TBL_Reception[[#This Row],[ОЧАКВАН]]-TBL_Reception[[#This Row],[ДЕЙСТВИТЕЛЕН]]) -> 200.00 лв.
B6: Храна и услуги | C6: 4,000.00 лв. | D6: 4,200.00 лв. | E6: =IF(OR(TBL_Reception[[#This Row],[ОЧАКВАН]]="",TBL_Reception[[#This Row],[ДЕЙСТВИТЕЛЕН]]=""),"",TBL_Reception[[#This Row],[ОЧАКВАН]]-TBL_Reception[[#This Row],[ДЕЙСТВИТЕЛЕН]]) -> -200.00 лв.
B7: Напитки | C7: 1,000.00 лв. | D7: 800.00 лв. | E7: =IF(OR(TBL_Reception[[#This Row],[ОЧАКВАН]]="",TBL_Reception[[#This Row],[ДЕЙСТВИТЕЛЕН]]=""),"",TBL_Reception[[#This Row],[ОЧАКВАН]]-TBL_Reception[[#This Row],[ДЕЙСТВИТЕЛЕН]]) -> 200.00 лв.
B8: Торта | C8: 1,000.00 лв. | E8: =IF(OR(TBL_Reception[[#This Row],[ОЧАКВАН]]="",TBL_Reception[[#This Row],[ДЕЙСТВИТЕЛЕН]]=""),"",TBL_Reception[[#This Row],[ОЧАКВАН]]-TBL_Reception[[#This Row],[ДЕЙСТВИТЕЛЕН]]) -> 
B9: Други разходи | C9: 500.00 лв. | E9: =IF(OR(TBL_Reception[[#This Row],[ОЧАКВАН]]="",TBL_Reception[[#This Row],[ДЕЙСТВИТЕЛЕН]]=""),"",TBL_Reception[[#This Row],[ОЧАКВАН]]-TBL_Reception[[#This Row],[ДЕЙСТВИТЕЛЕН]]) -> 
B10: ОБЩО ЗА ТЪРЖЕСТВОТО В РЕСТОРАНТА | C10: =SUBTOTAL(109,TBL_Reception[ОЧАКВАН]) -> 14,500.00 лв. | D10: =SUBTOTAL(109,TBL_Reception[ДЕЙСТВИТЕЛЕН]) -> 12,800.00 лв. | E10: =TBL_Reception[[#Totals],[ОЧАКВАН]]-TBL_Reception[[#Totals],[ДЕЙСТВИТЕЛЕН]] -> 1,700.00 лв.
B13: ОБЛЕКЛО | C13: ОЧАКВАН | D13: ДЕЙСТВИТЕЛЕН | E13: РАЗЛИКА
B14: Смокинг, костюм и/или рокли | C14: 3,000.00 лв. | D14: 2,900.00 лв. | E14: =IF(OR(TBL_Attire[[#This Row],[ОЧАКВАН]]="",TBL_Attire[[#This Row],[ДЕЙСТВИТЕЛЕН]]=""),"",TBL_Attire[[#This Row],[ОЧАКВАН]]-TBL_Attire[[#This Row],[ДЕЙСТВИТЕЛЕН]]) -> 100.00 лв.
B15: Поправки на дрехи | C15: 100.00 лв. | E15: =IF(OR(TBL_Attire[[#This Row],[ОЧАКВАН]]="",TBL_Attire[[#This Row],[ДЕЙСТВИТЕЛЕН]]=""),"",TBL_Attire[[#This Row],[ОЧАКВАН]]-TBL_Attire[[#This Row],[ДЕЙСТВИТЕЛЕН]]) -> 
B16: Аксесоар за главата и воал | C16: 200.00 лв. | E16: =IF(OR(TBL_Attire[[#This Row],[ОЧАКВАН]]="",TBL_Attire[[#This Row],[ДЕЙСТВИТЕЛЕН]]=""),"",TBL_Attire[[#This Row],[ОЧАКВАН]]-TBL_Attire[[#This Row],[ДЕЙСТВИТЕЛЕН]]) -> 
B17: Аксесоари | C17: 100.00 лв. | E17: =IF(OR(TBL_Attire[[#This Row],[ОЧАКВАН]]="",TBL_Attire[[#This Row],[ДЕЙСТВИТЕЛЕН]]=""),"",TBL_Attire[[#This Row],[ОЧАКВАН]]-TBL_Attire[[#This Row],[ДЕЙСТВИТЕЛЕН]]) -> 
B18: Коса и грим | C18: 500.00 лв. | E18: =IF(OR(TBL_Attire[[#This Row],[ОЧАКВАН]]="",TBL_Attire[[#This Row],[ДЕЙСТВИТЕЛЕН]]=""),"",TBL_Attire[[#This Row],[ОЧАКВАН]]-TBL_Attire[[#This Row],[ДЕЙСТВИТЕЛЕН]]) -> 
B19: Други разходи | C19: 100.00 лв. | E19: =IF(OR(TBL_Attire[[#This Row],[ОЧАКВАН]]="",TBL_Attire[[#This Row],[ДЕЙСТВИТЕЛЕН]]=""),"",TBL_Attire[[#This Row],[ОЧАКВАН]]-TBL_Attire[[#This Row],[ДЕЙСТВИТЕЛЕН]]) -> 
B20: ОБЩА СУМА ЗА ОБЛЕКЛО | C20: =SUBTOTAL(109,TBL_Attire[ОЧАКВАН]) -> 4,000.00 лв. | D20: =SUBTOTAL(109,TBL_Attire[ДЕЙСТВИТЕЛЕН]) -> 2,900.00 лв. | E20: =TBL_Attire[[#Totals],[ОЧАКВАН]]-TBL_Attire[[#Totals],[ДЕЙСТВИТЕЛЕН]] -> 1,100.00 лв.
B23: ЦВЕТЯ И ДЕКОРАЦИИ | C23: ОЧАКВАН | D23: ДЕЙСТВИТЕЛЕН | E23: РАЗЛИКА
B24: Аранжировки на цветя за церемонията | C24: 1,000.00 лв. | E24: =IF(OR(TBL_FlowersAndDecor[[#This Row],[ОЧАКВАН]]="",TBL_FlowersAndDecor[[#This Row],[ДЕЙСТВИТЕЛЕН]]=""),"",TBL_FlowersAndDecor[[#This Row],[ОЧАКВАН]]-TBL_FlowersAndDecor[[#This Row],[ДЕЙСТВИТЕЛЕН]]) -> 
B25: Късметчета и кошничка | C25: 500.00 лв. | E25: =IF(OR(TBL_FlowersAndDecor[[#This Row],[ОЧАКВАН]]="",TBL_FlowersAndDecor[[#This Row],[ДЕЙСТВИТЕЛЕН]]=""),"",TBL_FlowersAndDecor[[#This Row],[ОЧАКВАН]]-TBL_FlowersAndDecor[[#This Row],[ДЕЙСТВИТЕЛЕН]]) -> 
B26: Възглавница за пръстен | C26: 100.00 лв. | E26: =IF(OR(TBL_FlowersAndDecor[[#This Row],[ОЧАКВАН]]="",TBL_FlowersAndDecor[[#This Row],[ДЕЙСТВИТЕЛЕН]]=""),"",TBL_FlowersAndDecor[[#This Row],[ОЧАКВАН]]-TBL_FlowersAndDecor[[#This Row],[ДЕЙСТВИТЕЛЕН]]) -> 
B27: Букети | C27: 500.00 лв. | E27: =IF(OR(TBL_FlowersAndDecor[[#This Row],[ОЧАКВАН]]="",TBL_FlowersAndDecor[[#This Row],[ДЕЙСТВИТЕЛЕН]]=""),"",TBL_FlowersAndDecor[[#This Row],[ОЧАКВАН]]-TBL_FlowersAndDecor[[#This Row],[ДЕЙСТВИТЕЛЕН]]) -> 
B28: Бутониери | C28: 100.00 лв. | E28: =IF(OR(TBL_FlowersAndDecor[[#This Row],[ОЧАКВАН]]="",TBL_FlowersAndDecor[[#This Row],[ДЕЙСТВИТЕЛЕН]]=""),"",TBL_FlowersAndDecor[[#This Row],[ОЧАКВАН]]-TBL_FlowersAndDecor[[#This Row],[ДЕЙСТВИТЕЛЕН]]) -> 
B29: Букетчета за ръка | C29: 200.00 лв. | E29: =IF(OR(TBL_FlowersAndDecor[[#This Row],[ОЧАКВАН]]="",TBL_FlowersAndDecor[[#This Row],[ДЕЙСТВИТЕЛЕН]]=""),"",TBL_FlowersAndDecor[[#This Row],[ОЧАКВАН]]-TBL_FlowersAndDecor[[#This Row],[ДЕЙСТВИТЕЛЕН]]) -> 
B30: Декорации за прием | C30: 300.00 лв. | E30: =IF(OR(TBL_FlowersAndDecor[[#This Row],[ОЧАКВАН]]="",TBL_FlowersAndDecor[[#This Row],[ДЕЙСТВИТЕЛЕН]]=""),"",TBL_FlowersAndDecor[[#This Row],[ОЧАКВАН]]-TBL_FlowersAndDecor[[#This Row],[ДЕЙСТВИТЕЛЕН]]) -> 
B31: Осветление | C31: 200.00 лв. | E31: =IF(OR(TBL_FlowersAndDecor[[#This Row],[ОЧАКВАН]]="",TBL_FlowersAndDecor[[#This Row],[ДЕЙСТВИТЕЛЕН]]=""),"",TBL_FlowersAndDecor[[#This Row],[ОЧАКВАН]]-TBL_FlowersAndDecor[[#This Row],[ДЕЙСТВИТЕЛЕН]]) -> 
B32: Други разходи | C32: 100.00 лв. | E32: =IF(OR(TBL_FlowersAndDecor[[#This Row],[ОЧАКВАН]]="",TBL_FlowersAndDecor[[#This Row],[ДЕЙСТВИТЕЛЕН]]=""),"",TBL_FlowersAndDecor[[#This Row],[ОЧАКВАН]]-TBL_FlowersAndDecor[[#This Row],[ДЕЙСТВИТЕЛЕН]]) -> 
B33: ОБЩА СУМА ЗА ЦВЕТЯ И ДЕКОРАЦИИ | C33: =SUBTOTAL(109,TBL_FlowersAndDecor[ОЧАКВАН]) -> 3,000.00 лв. | D33: =SUBTOTAL(109,TBL_FlowersAndDecor[ДЕЙСТВИТЕЛЕН]) -> 0.00 лв. | E33: =TBL_FlowersAndDecor[[#Totals],[ОЧАКВАН]]-TBL_FlowersAndDecor[[#Totals],[ДЕЙСТВИТЕЛЕН]] -> 3,000.00 лв.
B36: МУЗИКА | C36: ОЧАКВАН | D36: ДЕЙСТВИТЕЛЕН | E36: РАЗЛИКА
B37: Музиканти за церемонията | C37: 700.00 лв. | E37: =IF(OR(TBL_Music[[#This Row],[ОЧАКВАН]]="",TBL_Music[[#This Row],[ДЕЙСТВИТЕЛЕН]]=""),"",TBL_Music[[#This Row],[ОЧАКВАН]]-TBL_Music[[#This Row],[ДЕЙСТВИТЕЛЕН]]) -> 
B38: Музиканти за коктейла | C38: 300.00 лв. | E38: =IF(OR(TBL_Music[[#This Row],[ОЧАКВАН]]="",TBL_Music[[#This Row],[ДЕЙСТВИТЕЛЕН]]=""),"",TBL_Music[[#This Row],[ОЧАКВАН]]-TBL_Music[[#This Row],[ДЕЙСТВИТЕЛЕН]]) -> 
B39: Оркестър за ресторанта, диджей или муз.оформление | C39: 200.00 лв. | E39: =IF(OR(TBL_Music[[#This Row],[ОЧАКВАН]]="",TBL_Music[[#This Row],[ДЕЙСТВИТЕЛЕН]]=""),"",TBL_Music[[#This Row],[ОЧАКВАН]]-TBL_Music[[#This Row],[ДЕЙСТВИТЕЛЕН]]) -> 
B40: Озвучаване или наем на дансинг | C40: 400.00 лв. | E40: =IF(OR(TBL_Music[[#This Row],[ОЧАКВАН]]="",TBL_Music[[#This Row],[ДЕЙСТВИТЕЛЕН]]=""),"",TBL_Music[[#This Row],[ОЧАКВАН]]-TBL_Music[[#This Row],[ДЕЙСТВИТЕЛЕН]]) -> 
B41: Други разходи | C41: 200.00 лв. | E41: =IF(OR(TBL_Music[[#This Row],[ОЧАКВАН]]="",TBL_Music[[#This Row],[ДЕЙСТВИТЕЛЕН]]=""),"",TBL_Music[[#This Row],[ОЧАКВАН]]-TBL_Music[[#This Row],[ДЕЙСТВИТЕЛЕН]]) -> 
B42: ОБЩА СУМА ЗА МУЗИКА | C42: =SUBTOTAL(109,TBL_Music[ОЧАКВАН]) -> 1,800.00 лв. | D42: =SUBTOTAL(109,TBL_Music[ДЕЙСТВИТЕЛЕН]) -> 0.00 лв. | E42: =TBL_Music[[#Totals],[ОЧАКВАН]]-TBL_Music[[#Totals],[ДЕЙСТВИТЕЛЕН]] -> 1,800.00 лв.
B45: СНИМКИ И ВИДЕО | C45: ОЧАКВАН | D45: ДЕЙСТВИТЕЛЕН | E45: РАЗЛИКА
B46: Снимки | C46: 1,000.00 лв. | E46: =IF(OR(TBL_PhotographsAndVideo[[#This Row],[ОЧАКВАН]]="",TBL_PhotographsAndVideo[[#This Row],[ДЕЙСТВИТЕЛЕН]]=""),"",TBL_PhotographsAndVideo[[#This Row],[ОЧАКВАН]]-TBL_PhotographsAndVideo[[#This Row],[ДЕЙСТВИТЕЛЕН]]) -> 
B47: Видеозапис | C47: 800.00 лв. | E47: =IF(OR(TBL_PhotographsAndVideo[[#This Row],[ОЧАКВАН]]="",TBL_PhotographsAndVideo[[#This Row],[ДЕЙСТВИТЕЛЕН]]=""),"",TBL_PhotographsAndVideo[[#This Row],[ОЧАКВАН]]-TBL_PhotographsAndVideo[[#This Row],[ДЕЙСТВИТЕЛЕН]]) -> 
B48: Допълнителни снимки и албуми | C48: 500.00 лв. | E48: =IF(OR(TBL_PhotographsAndVideo[[#This Row],[ОЧАКВАН]]="",TBL_PhotographsAndVideo[[#This Row],[ДЕЙСТВИТЕЛЕН]]=""),"",TBL_PhotographsAndVideo[[#This Row],[ОЧАКВАН]]-TBL_PhotographsAndVideo[[#This Row],[ДЕЙСТВИТЕЛЕН]]) -> 
B49: Други разходи | C49: 200.00 лв. | E49: =IF(OR(TBL_PhotographsAndVideo[[#This Row],[ОЧАКВАН]]="",TBL_PhotographsAndVideo[[#This Row],[ДЕЙСТВИТЕЛЕН]]=""),"",TBL_PhotographsAndVideo[[#This Row],[ОЧАКВАН]]-TBL_PhotographsAndVideo[[#This Row],[ДЕЙСТВИТЕЛЕН]]) -> 
B50: ОБЩО ЗА СНИМКИ И ВИДЕО | C50: =SUBTOTAL(109,TBL_PhotographsAndVideo[ОЧАКВАН]) -> 2,500.00 лв. | D50: =SUBTOTAL(109,TBL_PhotographsAndVideo[ДЕЙСТВИТЕЛЕН]) -> 0.00 лв. | E50: =TBL_PhotographsAndVideo[[#Totals],[ОЧАКВАН]]-TBL_PhotographsAndVideo[[#Totals],[ДЕЙСТВИТЕЛЕН]] -> 2,500.00 лв.
B53: ИЗГОДИ И ПОДАРЪЦИ | C53: ОЧАКВАН | D53: ДЕЙСТВИТЕЛЕН | E53: РАЗЛИКА
B54: Подаръци за добре дошли | C54: 700.00 лв. | E54: =IF(OR(TBL_FavorsAndGifts[[#This Row],[ОЧАКВАН]]="",TBL_FavorsAndGifts[[#This Row],[ДЕЙСТВИТЕЛЕН]]=""),"",TBL_FavorsAndGifts[[#This Row],[ОЧАКВАН]]-TBL_FavorsAndGifts[[#This Row],[ДЕЙСТВИТЕЛЕН]]) -> 
B55: Подаръци за парти | C55: 200.00 лв. | E55: =IF(OR(TBL_FavorsAndGifts[[#This Row],[ОЧАКВАН]]="",TBL_FavorsAndGifts[[#This Row],[ДЕЙСТВИТЕЛЕН]]=""),"",TBL_FavorsAndGifts[[#This Row],[ОЧАКВАН]]-TBL_FavorsAndGifts[[#This Row],[ДЕЙСТВИТЕЛЕН]]) -> 
B56: Други разходи | C56: 200.00 лв. | E56: =IF(OR(TBL_FavorsAndGifts[[#This Row],[ОЧАКВАН]]="",TBL_FavorsAndGifts[[#This Row],[ДЕЙСТВИТЕЛЕН]]=""),"",TBL_FavorsAndGifts[[#This Row],[ОЧАКВАН]]-TBL_FavorsAndGifts[[#This Row],[ДЕЙСТВИТЕЛЕН]]) -> 
B57: ОБЩО ИЗГОДИ И ПОДАРЪЦИ | C57: =SUBTOTAL(109,TBL_FavorsAndGifts[ОЧАКВАН]) -> 1,100.00 лв. | D57: =SUBTOTAL(109,TBL_FavorsAndGifts[ДЕЙСТВИТЕЛЕН]) -> 0.00 лв. | E57: =TBL_FavorsAndGifts[[#Totals],[ОЧАКВАН]]-TBL_FavorsAndGifts[[#Totals],[ДЕЙСТВИТЕЛЕН]] -> 1,100.00 лв.
B60: ЦЕРЕМОНИЯ | C60: ОЧАКВАН | D60: ДЕЙСТВИТЕЛЕН | E60: РАЗЛИКА
B61: Такса | C61: 500.00 лв. | E61: =IF(OR(TBL_Ceremony[[#This Row],[ОЧАКВАН]]="",TBL_Ceremony[[#This Row],[ДЕЙСТВИТЕЛЕН]]=""),"",TBL_Ceremony[[#This Row],[ОЧАКВАН]]-TBL_Ceremony[[#This Row],[ДЕЙСТВИТЕЛЕН]]) -> 
B62: Църковна такса или дарение за църква | C62: 200.00 лв. | E62: =IF(OR(TBL_Ceremony[[#This Row],[ОЧАКВАН]]="",TBL_Ceremony[[#This Row],[ДЕЙСТВИТЕЛЕН]]=""),"",TBL_Ceremony[[#This Row],[ОЧАКВАН]]-TBL_Ceremony[[#This Row],[ДЕЙСТВИТЕЛЕН]]) -> 
B63: Други разходи | C63: 100.00 лв. | E63: =IF(OR(TBL_Ceremony[[#This Row],[ОЧАКВАН]]="",TBL_Ceremony[[#This Row],[ДЕЙСТВИТЕЛЕН]]=""),"",TBL_Ceremony[[#This Row],[ОЧАКВАН]]-TBL_Ceremony[[#This Row],[ДЕЙСТВИТЕЛЕН]]) -> 
B64: ОБЩА СУМА ЗА ЦЕРЕМОНИЯТА | C64: =SUBTOTAL(109,TBL_Ceremony[ОЧАКВАН]) -> 800.00 лв. | D64: =SUBTOTAL(109,TBL_Ceremony[ДЕЙСТВИТЕЛЕН]) -> 0.00 лв. | E64: =TBL_Ceremony[[#Totals],[ОЧАКВАН]]-TBL_Ceremony[[#Totals],[ДЕЙСТВИТЕЛЕН]] -> 800.00 лв.
B67: КАНЦЕЛАРСКИ МАТЕРИАЛИ | C67: ОЧАКВАН | D67: ДЕЙСТВИТЕЛЕН | E67: РАЗЛИКА
B68: Картички - покани за сватбата | C68: 50.00 лв. | E68: =IF(OR(TBL_Stationery[[#This Row],[ОЧАКВАН]]="",TBL_Stationery[[#This Row],[ДЕЙСТВИТЕЛЕН]]=""),"",TBL_Stationery[[#This Row],[ОЧАКВАН]]-TBL_Stationery[[#This Row],[ДЕЙСТВИТЕЛЕН]]) -> 
B69: Покани и RSVPs | C69: 100.00 лв. | E69: =IF(OR(TBL_Stationery[[#This Row],[ОЧАКВАН]]="",TBL_Stationery[[#This Row],[ДЕЙСТВИТЕЛЕН]]=""),"",TBL_Stationery[[#This Row],[ОЧАКВАН]]-TBL_Stationery[[#This Row],[ДЕЙСТВИТЕЛЕН]]) -> 
B70: Програми | C70: 50.00 лв. | E70: =IF(OR(TBL_Stationery[[#This Row],[ОЧАКВАН]]="",TBL_Stationery[[#This Row],[ДЕЙСТВИТЕЛЕН]]=""),"",TBL_Stationery[[#This Row],[ОЧАКВАН]]-TBL_Stationery[[#This Row],[ДЕЙСТВИТЕЛЕН]]) -> 
B71: Надписи за място за сядане | C71: 50.00 лв. | E71: =IF(OR(TBL_Stationery[[#This Row],[ОЧАКВАН]]="",TBL_Stationery[[#This Row],[ДЕЙСТВИТЕЛЕН]]=""),"",TBL_Stationery[[#This Row],[ОЧАКВАН]]-TBL_Stationery[[#This Row],[ДЕЙСТВИТЕЛЕН]]) -> 
B72: Менюта | C72: 50.00 лв. | E72: =IF(OR(TBL_Stationery[[#This Row],[ОЧАКВАН]]="",TBL_Stationery[[#This Row],[ДЕЙСТВИТЕЛЕН]]=""),"",TBL_Stationery[[#This Row],[ОЧАКВАН]]-TBL_Stationery[[#This Row],[ДЕЙСТВИТЕЛЕН]]) -> 
B73: Бележки за благодарственост | C73: 50.00 лв. | E73: =IF(OR(TBL_Stationery[[#This Row],[ОЧАКВАН]]="",TBL_Stationery[[#This Row],[ДЕЙСТВИТЕЛЕН]]=""),"",TBL_Stationery[[#This Row],[ОЧАКВАН]]-TBL_Stationery[[#This Row],[ДЕЙСТВИТЕЛЕН]]) -> 
B74: Пощенски разходи | C74: 50.00 лв. | E74: =IF(OR(TBL_Stationery[[#This Row],[ОЧАКВАН]]="",TBL_Stationery[[#This Row],[ДЕЙСТВИТЕЛЕН]]=""),"",TBL_Stationery[[#This Row],[ОЧАКВАН]]-TBL_Stationery[[#This Row],[ДЕЙСТВИТЕЛЕН]]) -> 
B75: Други разходи | C75: 100.00 лв. | E75: =IF(OR(TBL_Stationery[[#This Row],[ОЧАКВАН]]="",TBL_Stationery[[#This Row],[ДЕЙСТВИТЕЛЕН]]=""),"",TBL_Stationery[[#This Row],[ОЧАКВАН]]-TBL_Stationery[[#This Row],[ДЕЙСТВИТЕЛЕН]]) -> 
B76: ОБЩО ЗА КАНЦЕЛАРСКИ МАТЕРИАЛИ | C76: =SUBTOTAL(109,TBL_Stationery[ОЧАКВАН]) -> 500.00 лв. | D76: =SUBTOTAL(109,TBL_Stationery[ДЕЙСТВИТЕЛЕН]) -> 0.00 лв. | E76: =TBL_Stationery[[#Totals],[ОЧАКВАН]]-TBL_Stationery[[#Totals],[ДЕЙСТВИТЕЛЕН]] -> 500.00 лв.
B79: ВЕНЧАЛНИ ХАЛКИ | C79: ОЧАКВАН | D79: ДЕЙСТВИТЕЛЕН | E79: РАЗЛИКА
B80: Венчални халки | C80: 1,000.00 лв. | E80: =IF(OR(TBL_WeddingRings[[#This Row],[ОЧАКВАН]]="",TBL_WeddingRings[[#This Row],[ДЕЙСТВИТЕЛЕН]]=""),"",TBL_WeddingRings[[#This Row],[ОЧАКВАН]]-TBL_WeddingRings[[#This Row],[ДЕЙСТВИТЕЛЕН]]) -> 
B81: Аксесоари за пръстените | C81: 100.00 лв. | E81: =IF(OR(TBL_WeddingRings[[#This Row],[ОЧАКВАН]]="",TBL_WeddingRings[[#This Row],[ДЕЙСТВИТЕЛЕН]]=""),"",TBL_WeddingRings[[#This Row],[ОЧАКВАН]]-TBL_WeddingRings[[#This Row],[ДЕЙСТВИТЕЛЕН]]) -> 
B82: ОБЩО ЗА ВЕНЧАЛНИ ХАЛКИ | C82: =SUBTOTAL(109,TBL_WeddingRings[ОЧАКВАН]) -> 1,100.00 лв. | D82: =SUBTOTAL(109,TBL_WeddingRings[ДЕЙСТВИТЕЛЕН]) -> 0.00 лв. | E82: =TBL_WeddingRings[[#Totals],[ОЧАКВАН]]-TBL_WeddingRings[[#Totals],[ДЕЙСТВИТЕЛЕН]] -> 1,100.00 лв.
B85: ТРАНСПОРТ | C85: ОЧАКВАН | D85: ДЕЙСТВИТЕЛЕН | E85: РАЗЛИКА
B86: Основна кола наем | C86: 100.00 лв. | E86: =IF(OR(TBL_Transportation[[#This Row],[ОЧАКВАН]]="",TBL_Transportation[[#This Row],[ДЕЙСТВИТЕЛЕН]]=""),"",TBL_Transportation[[#This Row],[ОЧАКВАН]]-TBL_Transportation[[#This Row],[ДЕЙСТВИТЕЛЕН]]) -> 
B87: Коли под наем на гостите | C87: 100.00 лв. | E87: =IF(OR(TBL_Transportation[[#This Row],[ОЧАКВАН]]="",TBL_Transportation[[#This Row],[ДЕЙСТВИТЕЛЕН]]=""),"",TBL_Transportation[[#This Row],[ОЧАКВАН]]-TBL_Transportation[[#This Row],[ДЕЙСТВИТЕЛЕН]]) -> 
B88: Транспорт за гости извън града | C88: 100.00 лв. | E88: =IF(OR(TBL_Transportation[[#This Row],[ОЧАКВАН]]="",TBL_Transportation[[#This Row],[ДЕЙСТВИТЕЛЕН]]=""),"",TBL_Transportation[[#This Row],[ОЧАКВАН]]-TBL_Transportation[[#This Row],[ДЕЙСТВИТЕЛЕН]]) -> 
B89: Паркинг с обслужване | C89: 50.00 лв. | E89: =IF(OR(TBL_Transportation[[#This Row],[ОЧАКВАН]]="",TBL_Transportation[[#This Row],[ДЕЙСТВИТЕЛЕН]]=""),"",TBL_Transportation[[#This Row],[ОЧАКВАН]]-TBL_Transportation[[#This Row],[ДЕЙСТВИТЕЛЕН]]) -> 
B90: Други разходи | C90: 100.00 лв. | E90: =IF(OR(TBL_Transportation[[#This Row],[ОЧАКВАН]]="",TBL_Transportation[[#This Row],[ДЕЙСТВИТЕЛЕН]]=""),"",TBL_Transportation[[#This Row],[ОЧАКВАН]]-TBL_Transportation[[#This Row],[ДЕЙСТВИТЕЛЕН]]) -> 
B91: ОБЩО ЗА ТРАНСПОРТ | C91: =SUBTOTAL(109,TBL_Transportation[ОЧАКВАН]) -> 450.00 лв. | D91: =SUBTOTAL(109,TBL_Transportation[ДЕЙСТВИТЕЛЕН]) -> 0.00 лв. | E91: =TBL_Transportation[[#Totals],[ОЧАКВАН]]-TBL_Transportation[[#Totals],[ДЕЙСТВИТЕЛЕН]] -> 450.00 лв.
